[Event "Late-Titled-Tuesday-Blitz-December-26-2023"]
[Site "Chess.com"]
[Date "2023.12.26"]
[Round "6"]
[White "cthake"]
[Black "PushingpawnsNYC"]
[Result "0-1"]
[WhiteElo "1925"]
[BlackElo "2482"]
[TimeControl "180+1"]
[EndTime "15:06:52 PST"]
[Termination "PushingpawnsNYC won on time"]

1. e4 {[%clk 0:03:00.9]} 1... c5 {[%clk 0:02:42.3]} 2. Nf3 {[%clk 0:02:59.1]}
2... e6 {[%clk 0:02:41.9]} 3. c4 {[%clk 0:02:55.9]} 3... a6 {[%clk 0:02:40.9]}
4. Nc3 {[%clk 0:02:55]} 4... Qc7 {[%clk 0:02:40.6]} 5. d4 {[%clk 0:02:44.1]}
5... cxd4 {[%clk 0:02:41.5]} 6. Nxd4 {[%clk 0:02:43.4]} 6... b6 {[%clk
0:02:36.2]} 7. Be3 {[%clk 0:02:43]} 7... Bb7 {[%clk 0:02:33.5]} 8. Be2 {[%clk
0:02:33.1]} 8... Nf6 {[%clk 0:02:17.8]} 9. f3 {[%clk 0:02:14.8]} 9... Nc6 {[%clk
0:02:12.3]} 10. O-O {[%clk 0:02:13.6]} 10... Nxd4 {[%clk 0:02:11]} 11. Bxd4
{[%clk 0:02:13.2]} 11... Bd6 {[%clk 0:02:08.9]} 12. Qd2 {[%clk 0:01:55.3]} 12...
Bxh2+ {[%clk 0:02:06.5]} 13. Kh1 {[%clk 0:01:54.6]} 13... Bf4 {[%clk 0:02:04.2]}
14. Be3 {[%clk 0:01:47.5]} 14... Nh5 {[%clk 0:01:52.4]} 15. Rf2 {[%clk
0:01:26.3]} 15... Ng3+ {[%clk 0:01:49.1]} 16. Kg1 {[%clk 0:01:25.5]} 16... Bxe3
{[%clk 0:01:43.4]} 17. Qxe3 {[%clk 0:01:24]} 17... Nxe2+ {[%clk 0:01:36.8]} 18.
Qxe2 {[%clk 0:01:23.4]} 18... O-O {[%clk 0:01:36.1]} 19. b3 {[%clk 0:01:22.4]}
19... f5 {[%clk 0:01:33.2]} 20. e5 {[%clk 0:01:18]} 20... b5 {[%clk 0:01:28.3]}
21. Rd1 {[%clk 0:01:13.7]} 21... bxc4 {[%clk 0:01:23.6]} 22. Qxc4 {[%clk
0:01:13.9]} 22... Rac8 {[%clk 0:01:21.5]} 23. Qxc7 {[%clk 0:01:04.8]} 23... Rxc7
{[%clk 0:01:19.4]} 24. Na4 {[%clk 0:01:05.1]} 24... Bd5 {[%clk 0:01:16]} 25. Nb6
{[%clk 0:01:01.5]} 25... Bc6 {[%clk 0:01:12.2]} 26. Rfd2 {[%clk 0:00:55.7]}
26... Rd8 {[%clk 0:01:09.1]} 27. Nc4 {[%clk 0:00:51.3]} 27... h6 {[%clk
0:01:03.6]} 28. Kf2 {[%clk 0:00:51.2]} 28... Bd5 {[%clk 0:01:02.3]} 29. Nb6
{[%clk 0:00:44]} 29... Bc6 {[%clk 0:01:01.2]} 30. Ke3 {[%clk 0:00:42.6]} 30...
Rb7 {[%clk 0:00:58.8]} 31. Nc4 {[%clk 0:00:41.3]} 31... Bd5 {[%clk 0:00:57.6]}
32. Nd6 {[%clk 0:00:38]} 32... Rb4 {[%clk 0:00:51.8]} 33. Rc1 {[%clk 0:00:36.3]}
33... a5 {[%clk 0:00:50.2]} 34. Rc7 {[%clk 0:00:32]} 34... a4 {[%clk 0:00:48.3]}
35. Nc4 {[%clk 0:00:31.7]} 35... axb3 {[%clk 0:00:46.2]} 36. axb3 {[%clk
0:00:29.5]} 36... Rxb3+ {[%clk 0:00:45.7]} 37. Kd4 {[%clk 0:00:24.2]} 37... Rb4
{[%clk 0:00:41.3]} 38. Rc2 {[%clk 0:00:22]} 38... Bxc4 {[%clk 0:00:38.3]} 39.
R2xc4 {[%clk 0:00:21.6]} 39... Rxc4+ {[%clk 0:00:38.6]} 40. Kxc4 {[%clk
0:00:21.9]} 40... Kf7 {[%clk 0:00:37.8]} 41. Kc5 {[%clk 0:00:21.3]} 41... Ke7
{[%clk 0:00:37.6]} 42. f4 {[%clk 0:00:21.6]} 42... Ra8 {[%clk 0:00:36.5]} 43.
Rb7 {[%clk 0:00:17.3]} 43... Ra2 {[%clk 0:00:31.6]} 44. g3 {[%clk 0:00:16.5]}
44... Ra3 {[%clk 0:00:31.4]} 0-1

[Event "Late-Titled-Tuesday-Blitz-December-26-2023"]
[Site "Chess.com"]
[Date "2023.12.26"]
[Round "6"]
[White "Skatchkov_V"]
[Black "enriquetejedor"]
[Result "1-0"]
[WhiteElo "2592"]
[BlackElo "2729"]
[TimeControl "180+1"]
[EndTime "15:07:03 PST"]
[Termination "Skatchkov_V won by resignation"]

1. d4 {[%clk 0:02:57.3]} 1... Nf6 {[%clk 0:02:59.5]} 2. c4 {[%clk 0:02:57]} 2...
e6 {[%clk 0:02:59.9]} 3. Nf3 {[%clk 0:02:57]} 3... b6 {[%clk 0:03:00.6]} 4. g3
{[%clk 0:02:56.2]} 4... Bb7 {[%clk 0:03:01.5]} 5. Bg2 {[%clk 0:02:56.4]} 5...
Bb4+ {[%clk 0:03:01.5]} 6. Bd2 {[%clk 0:02:56.5]} 6... a5 {[%clk 0:03:01.1]} 7.
O-O {[%clk 0:02:56.4]} 7... O-O {[%clk 0:02:59.3]} 8. Bf4 {[%clk 0:02:56.7]}
8... d5 {[%clk 0:02:56]} 9. cxd5 {[%clk 0:02:37.6]} 9... Bxd5 {[%clk 0:02:54.6]}
10. Nc3 {[%clk 0:02:35.5]} 10... Bxc3 {[%clk 0:02:51.8]} 11. bxc3 {[%clk
0:02:34.3]} 11... Nbd7 {[%clk 0:02:52.7]} 12. Re1 {[%clk 0:02:32.5]} 12... b5
{[%clk 0:02:51.9]} 13. Qd3 {[%clk 0:02:30.6]} 13... Bc4 {[%clk 0:02:47.6]} 14.
Qc2 {[%clk 0:02:29.1]} 14... Nd5 {[%clk 0:02:42.4]} 15. Bg5 {[%clk 0:02:25.4]}
15... Qc8 {[%clk 0:02:37.9]} 16. e4 {[%clk 0:02:25.2]} 16... N5b6 {[%clk
0:02:37.6]} 17. Nd2 {[%clk 0:01:18.8]} 17... c5 {[%clk 0:02:36.1]} 18. d5 {[%clk
0:01:17.7]} 18... exd5 {[%clk 0:02:35.1]} 19. Nxc4 {[%clk 0:01:10.8]} 19... dxc4
{[%clk 0:02:33.1]} 20. e5 {[%clk 0:01:11.2]} 20... Ra7 {[%clk 0:02:30.2]} 21. e6
{[%clk 0:01:08]} 21... fxe6 {[%clk 0:02:31.1]} 22. Rxe6 {[%clk 0:01:08.5]} 22...
b4 {[%clk 0:02:24]} 23. Be4 {[%clk 0:00:59.2]} 23... Nf6 {[%clk 0:02:08.1]} 24.
Rxb6 {[%clk 0:00:55.5]} 24... Nxe4 {[%clk 0:02:05.7]} 25. Qxe4 {[%clk
0:00:54.8]} 25... Raf7 {[%clk 0:01:55.5]} 26. Qxc4 {[%clk 0:00:53]} 26... h6
{[%clk 0:01:50.8]} 27. Be3 {[%clk 0:00:52.9]} 27... Qh3 {[%clk 0:01:43.6]} 28.
Rb7 {[%clk 0:00:48.2]} 28... Qf5 {[%clk 0:01:39.2]} 29. Rxf7 {[%clk 0:00:47]}
29... Rxf7 {[%clk 0:01:40.1]} 30. Qxc5 {[%clk 0:00:42.5]} 30... Qf6 {[%clk
0:01:26.5]} 31. Rc1 {[%clk 0:00:33.7]} 31... bxc3 {[%clk 0:01:22.4]} 32. Qxa5
{[%clk 0:00:30.8]} 32... h5 {[%clk 0:01:15.9]} 33. h4 {[%clk 0:00:30.8]} 33...
Qf3 {[%clk 0:01:14.7]} 34. Qxc3 {[%clk 0:00:28.8]} 34... Kh7 {[%clk 0:01:13.6]}
35. Qd3+ {[%clk 0:00:27.4]} 35... g6 {[%clk 0:01:04.9]} 36. Qd4 {[%clk
0:00:24.8]} 36... Qa8 {[%clk 0:01:01.4]} 37. a4 {[%clk 0:00:21.6]} 37... Qe8
{[%clk 0:00:58.4]} 38. a5 {[%clk 0:00:18.8]} 38... Rd7 {[%clk 0:00:58.6]} 39.
Qf4 {[%clk 0:00:17.1]} 39... Rg7 {[%clk 0:00:44]} 40. Rc7 {[%clk 0:00:15.4]}
40... Rxc7 {[%clk 0:00:36.6]} 41. Qxc7+ {[%clk 0:00:16.3]} 41... Kg8 {[%clk
0:00:36.8]} 42. a6 {[%clk 0:00:16.7]} 42... Qa4 {[%clk 0:00:34]} 43. a7 {[%clk
0:00:16.6]} 43... Qa1+ {[%clk 0:00:30.6]} 44. Kh2 {[%clk 0:00:16.5]} 44... g5
{[%clk 0:00:30.9]} 45. Qb8+ {[%clk 0:00:15.3]} 45... Kf7 {[%clk 0:00:31.4]} 46.
a8=Q {[%clk 0:00:15.8]} 46... Qxa8 {[%clk 0:00:30.4]} 47. Qxa8 {[%clk
0:00:16.7]} 47... gxh4 {[%clk 0:00:30.5]} 48. gxh4 {[%clk 0:00:16.8]} 48... Kf6
{[%clk 0:00:30.6]} 49. Kg3 {[%clk 0:00:16.9]} 49... Kf5 {[%clk 0:00:30.9]} 50.
Qd5+ {[%clk 0:00:16.6]} 50... Kg6 {[%clk 0:00:30.7]} 51. Qg5+ {[%clk 0:00:16.5]}
51... Kf7 {[%clk 0:00:30.9]} 52. Qxh5+ {[%clk 0:00:17.4]} 52... Kf6 {[%clk
0:00:31.8]} 53. Qg5+ {[%clk 0:00:17.4]} 53... Ke6 {[%clk 0:00:32.1]} 54. h5
{[%clk 0:00:18.2]} 54... Kf7 {[%clk 0:00:32.6]} 55. h6 {[%clk 0:00:19.1]} 1-0

[Event "Late-Titled-Tuesday-Blitz-December-26-2023"]
[Site "Chess.com"]
[Date "2023.12.26"]
[Round "6"]
[White "mariofs"]
[Black "PoXerStar"]
[Result "0-1"]
[WhiteElo "2196"]
[BlackElo "2427"]
[TimeControl "180+1"]
[EndTime "15:07:06 PST"]
[Termination "PoXerStar won by resignation"]

1. d4 {[%clk 0:03:00.9]} 1... Nf6 {[%clk 0:02:58.5]} 2. Nc3 {[%clk 0:02:56.9]}
2... d5 {[%clk 0:02:57.8]} 3. Bf4 {[%clk 0:02:56]} 3... c5 {[%clk 0:02:57.6]} 4.
e3 {[%clk 0:02:53.2]} 4... cxd4 {[%clk 0:02:58]} 5. exd4 {[%clk 0:02:52.9]} 5...
Bg4 {[%clk 0:02:58.5]} 6. f3 {[%clk 0:02:47.3]} 6... Bd7 {[%clk 0:02:58.5]} 7.
a3 {[%clk 0:02:43.4]} 7... Nc6 {[%clk 0:02:38.1]} 8. Bd3 {[%clk 0:02:42.3]} 8...
Nxd4 {[%clk 0:02:29.5]} 9. Qd2 {[%clk 0:02:40.7]} 9... Nc6 {[%clk 0:02:24.2]}
10. O-O-O {[%clk 0:02:36.2]} 10... e5 {[%clk 0:02:23.3]} 11. Bg3 {[%clk
0:02:35.9]} 11... d4 {[%clk 0:02:19.7]} 12. Ne4 {[%clk 0:02:07.5]} 12... Be7
{[%clk 0:02:12.5]} 13. h4 {[%clk 0:02:04.4]} 13... Nd5 {[%clk 0:02:05.9]} 14. h5
{[%clk 0:01:57.7]} 14... f5 {[%clk 0:02:02.8]} 15. Nf2 {[%clk 0:01:49.6]} 15...
Bg5 {[%clk 0:01:58.2]} 16. f4 {[%clk 0:01:40.9]} 16... Nxf4 {[%clk 0:01:57.5]}
17. Kb1 {[%clk 0:01:36.2]} 17... Nxg2 {[%clk 0:01:39.9]} 18. Qe2 {[%clk
0:01:33.9]} 18... Ne3 {[%clk 0:01:39.9]} 19. Re1 {[%clk 0:01:28]} 19... O-O
{[%clk 0:01:35.1]} 20. Ngh3 {[%clk 0:01:27.6]} 20... Bf6 {[%clk 0:01:32.9]} 21.
Nd1 {[%clk 0:01:20.9]} 21... f4 {[%clk 0:01:24.5]} 22. Bf2 {[%clk 0:01:19.8]}
22... Bg4 {[%clk 0:01:23.9]} 23. Qd2 {[%clk 0:01:13.9]} 23... Nxd1 {[%clk
0:01:21.6]} 24. Rxd1 {[%clk 0:01:14.8]} 24... Bxd1 {[%clk 0:01:21.7]} 25. Qxd1
{[%clk 0:01:15.3]} 25... Qd5 {[%clk 0:01:11.3]} 26. Rg1 {[%clk 0:01:10.5]} 26...
e4 {[%clk 0:01:08.2]} 27. Be2 {[%clk 0:01:08.3]} 27... f3 {[%clk 0:01:05.5]} 28.
Bf1 {[%clk 0:01:06.1]} 28... Rad8 {[%clk 0:00:59.4]} 29. b3 {[%clk 0:00:50.3]}
29... Kh8 {[%clk 0:00:58.5]} 30. Nf4 {[%clk 0:00:47.1]} 30... Qf5 {[%clk
0:00:52.3]} 31. Bg3 {[%clk 0:00:36.5]} 31... Bg5 {[%clk 0:00:48.6]} 32. Bh3
{[%clk 0:00:30.1]} 32... Bxf4 {[%clk 0:00:41.2]} 33. Bxf5 {[%clk 0:00:29.6]}
33... Rxf5 {[%clk 0:00:42.1]} 34. Bh4 {[%clk 0:00:25.3]} 34... Re8 {[%clk
0:00:38.7]} 35. Rg4 {[%clk 0:00:24.8]} 35... Bh6 {[%clk 0:00:29.8]} 36. b4
{[%clk 0:00:20.1]} 36... e3 {[%clk 0:00:28.9]} 37. Qd3 {[%clk 0:00:20.1]} 37...
Rxh5 {[%clk 0:00:27.4]} 38. Bg3 {[%clk 0:00:17.1]} 38... a6 {[%clk 0:00:18.4]}
39. Re4 {[%clk 0:00:16.9]} 39... Rf8 {[%clk 0:00:16.4]} 40. a4 {[%clk
0:00:09.7]} 40... f2 {[%clk 0:00:16.2]} 41. Rf4 {[%clk 0:00:04.6]} 41... Bxf4
{[%clk 0:00:15.8]} 42. Bxf4 {[%clk 0:00:05.5]} 42... Rxf4 {[%clk 0:00:14.6]} 43.
b5 {[%clk 0:00:05.3]} 43... f1=Q+ {[%clk 0:00:14.4]} 44. Kb2 {[%clk 0:00:05.8]}
44... Qxd3 {[%clk 0:00:14.5]} 0-1

[Event "Late-Titled-Tuesday-Blitz-December-26-2023"]
[Site "Chess.com"]
[Date "2023.12.26"]
[Round "6"]
[White "GothamChess"]
[Black "zsoltkorpics"]
[Result "1-0"]
[WhiteElo "2684"]
[BlackElo "2504"]
[TimeControl "180+1"]
[EndTime "15:07:07 PST"]
[Termination "GothamChess won by resignation"]

1. e4 {[%clk 0:02:56.3]} 1... c5 {[%clk 0:02:59.4]} 2. Nc3 {[%clk 0:02:56]} 2...
Nc6 {[%clk 0:02:59.2]} 3. Bb5 {[%clk 0:02:55.4]} 3... Na5 {[%clk 0:02:59.2]} 4.
d4 {[%clk 0:02:52.2]} 4... cxd4 {[%clk 0:02:58.6]} 5. Qxd4 {[%clk 0:02:53.1]}
5... a6 {[%clk 0:02:58]} 6. Bd3 {[%clk 0:02:49]} 6... Nc6 {[%clk 0:02:54.8]} 7.
Qe3 {[%clk 0:02:48.7]} 7... Nf6 {[%clk 0:02:54.1]} 8. Nf3 {[%clk 0:02:43.9]}
8... d6 {[%clk 0:02:51.5]} 9. h3 {[%clk 0:02:42.5]} 9... g6 {[%clk 0:02:45]} 10.
b3 {[%clk 0:02:31.9]} 10... Bg7 {[%clk 0:02:44.7]} 11. Bb2 {[%clk 0:02:32.2]}
11... O-O {[%clk 0:02:36.2]} 12. O-O-O {[%clk 0:02:30.7]} 12... Qa5 {[%clk
0:02:03.2]} 13. Kb1 {[%clk 0:02:18.3]} 13... b5 {[%clk 0:02:00.9]} 14. g4 {[%clk
0:02:04.8]} 14... Nd7 {[%clk 0:01:46.5]} 15. Be2 {[%clk 0:01:55.8]} 15... Nc5
{[%clk 0:01:41.9]} 16. Nd5 {[%clk 0:01:42.1]} 16... Bxb2 {[%clk 0:01:23.8]} 17.
Kxb2 {[%clk 0:01:42.1]} 17... b4 {[%clk 0:01:20.1]} 18. Nd4 {[%clk 0:01:27.6]}
18... Nxd4 {[%clk 0:00:11.2]} 19. Nxe7+ {[%clk 0:01:27.6]} 19... Kg7 {[%clk
0:00:11.5]} 20. Qxd4+ {[%clk 0:01:28.1]} 20... f6 {[%clk 0:00:11.9]} 21. g5
{[%clk 0:01:17.9]} 21... Ne6 {[%clk 0:00:08.9]} 22. Qxd6 {[%clk 0:00:59.8]}
22... Nxg5 {[%clk 0:00:08]} 23. Bc4 {[%clk 0:00:47]} 23... Qe5+ {[%clk
0:00:07.7]} 24. Qxe5 {[%clk 0:00:29.2]} 24... fxe5 {[%clk 0:00:08.6]} 25. Bd5
{[%clk 0:00:29.1]} 25... Rb8 {[%clk 0:00:04.8]} 26. h4 {[%clk 0:00:26.2]} 26...
Ne6 {[%clk 0:00:03.2]} 27. Nxc8 {[%clk 0:00:24.4]} 27... Nd4 {[%clk 0:00:01.2]}
28. Nd6 {[%clk 0:00:13.1]} 28... Rxf2 {[%clk 0:00:01.9]} 29. Rc1 {[%clk
0:00:13.6]} 29... Rb6 {[%clk 0:00:01.5]} 30. Nc4 {[%clk 0:00:14.1]} 30... Rb7
{[%clk 0:00:01.9]} 31. Bxb7 {[%clk 0:00:14.1]} 31... Nb5 {[%clk 0:00:02.7]} 32.
Rhf1 {[%clk 0:00:12.6]} 32... Rh2 {[%clk 0:00:02.2]} 33. Bxa6 {[%clk 0:00:12.7]}
33... Nc3 {[%clk 0:00:01.7]} 34. Bb7 {[%clk 0:00:11.3]} 34... Rxh4 {[%clk
0:00:02.1]} 35. a3 {[%clk 0:00:11.6]} 35... bxa3+ {[%clk 0:00:02]} 36. Kxc3
{[%clk 0:00:12]} 36... Rh3+ {[%clk 0:00:02.2]} 37. Kb4 {[%clk 0:00:12.2]} 37...
Rh4 {[%clk 0:00:02.5]} 38. Bd5 {[%clk 0:00:12.3]} 38... Rh2 {[%clk 0:00:02.9]}
39. Kxa3 {[%clk 0:00:12.1]} 39... h5 {[%clk 0:00:02.8]} 40. Nxe5 {[%clk
0:00:12.2]} 40... Kh6 {[%clk 0:00:02.9]} 41. Nf3 {[%clk 0:00:12.6]} 41... Re2
{[%clk 0:00:01.7]} 42. Nd4 {[%clk 0:00:12.8]} 42... Rd2 {[%clk 0:00:01.4]} 43.
Nf3 {[%clk 0:00:12.6]} 1-0

[Event "Late-Titled-Tuesday-Blitz-December-26-2023"]
[Site "Chess.com"]
[Date "2023.12.26"]
[Round "6"]
[White "h4parah5"]
[Black "Durarbayli"]
[Result "0-1"]
[WhiteElo "2924"]
[BlackElo "2918"]
[TimeControl "180+1"]
[EndTime "15:07:08 PST"]
[Termination "Durarbayli won on time"]

1. Nf3 {[%clk 0:03:00.9]} 1... d5 {[%clk 0:02:58.8]} 2. e3 {[%clk 0:02:59.8]}
2... c5 {[%clk 0:02:51.6]} 3. d4 {[%clk 0:02:59.2]} 3... Nf6 {[%clk 0:02:49.5]}
4. Nbd2 {[%clk 0:02:56.4]} 4... Qc7 {[%clk 0:02:45]} 5. dxc5 {[%clk 0:02:47.2]}
5... Qxc5 {[%clk 0:02:45.9]} 6. a3 {[%clk 0:02:46.3]} 6... g6 {[%clk 0:02:44.5]}
7. b4 {[%clk 0:02:45.7]} 7... Qc7 {[%clk 0:02:36.2]} 8. Bb2 {[%clk 0:02:44.8]}
8... Bg7 {[%clk 0:02:36.2]} 9. c4 {[%clk 0:02:44.5]} 9... O-O {[%clk 0:02:20.6]}
10. Rc1 {[%clk 0:02:42.3]} 10... dxc4 {[%clk 0:02:08.5]} 11. Bxc4 {[%clk
0:02:43.2]} 11... Qb6 {[%clk 0:01:47.3]} 12. O-O {[%clk 0:02:20.1]} 12... Nc6
{[%clk 0:01:42.1]} 13. Qb3 {[%clk 0:02:14.7]} 13... a5 {[%clk 0:01:09.3]} 14.
Ng5 {[%clk 0:02:04.2]} 14... Nd8 {[%clk 0:00:43.5]} 15. Bd4 {[%clk 0:01:58.9]}
15... Qd6 {[%clk 0:00:43.5]} 16. Nde4 {[%clk 0:01:42.3]} 16... Qb8 {[%clk
0:00:40.4]} 17. bxa5 {[%clk 0:01:29.1]} 17... Rxa5 {[%clk 0:00:34.3]} 18. Bb6
{[%clk 0:00:41]} 18... Nxe4 {[%clk 0:00:26.1]} 19. Nxe4 {[%clk 0:00:37.3]} 19...
Re5 {[%clk 0:00:17]} 20. Bc7 {[%clk 0:00:15.4]} 20... Qxc7 {[%clk 0:00:14.9]}
21. Bxf7+ {[%clk 0:00:15.1]} 21... Nxf7 {[%clk 0:00:15.8]} 22. Rxc7 {[%clk
0:00:15]} 22... Rxe4 {[%clk 0:00:16.4]} 23. Rfc1 {[%clk 0:00:15]} 23... Be6
{[%clk 0:00:13.7]} 24. Qxb7 {[%clk 0:00:13.8]} 24... Nd6 {[%clk 0:00:09.9]} 25.
Qc6 {[%clk 0:00:12.9]} 25... Bf7 {[%clk 0:00:07]} 26. Ra7 {[%clk 0:00:09.6]}
26... Bf6 {[%clk 0:00:06.8]} 27. Ra8 {[%clk 0:00:09.7]} 27... Rxa8 {[%clk
0:00:06.2]} 28. Qxa8+ {[%clk 0:00:10.6]} 28... Kg7 {[%clk 0:00:06.7]} 29. h3
{[%clk 0:00:10.2]} 29... Be8 {[%clk 0:00:04.6]} 30. Qd5 {[%clk 0:00:05.9]} 30...
Ra4 {[%clk 0:00:05.1]} 31. Qd3 {[%clk 0:00:05.7]} 31... Bf7 {[%clk 0:00:05.4]}
32. Rc6 {[%clk 0:00:05.1]} 32... Bc4 {[%clk 0:00:05.5]} 33. Qd1 {[%clk
0:00:02.3]} 33... Bb5 {[%clk 0:00:05.7]} 34. Rxd6 {[%clk 0:00:02.3]} 34... exd6
{[%clk 0:00:06]} 35. Qxd6 {[%clk 0:00:03.1]} 35... Be8 {[%clk 0:00:03.9]} 36.
Qc7+ {[%clk 0:00:02.8]} 36... Bf7 {[%clk 0:00:04.1]} 37. Qd6 {[%clk 0:00:02.4]}
37... Bb2 {[%clk 0:00:03.9]} 38. g4 {[%clk 0:00:01.9]} 38... Rxa3 {[%clk
0:00:03.9]} 39. Qb4 {[%clk 0:00:01.6]} 39... Ra1+ {[%clk 0:00:04.8]} 40. Kh2
{[%clk 0:00:01.4]} 40... Bf6 {[%clk 0:00:05.7]} 0-1

[Event "Late-Titled-Tuesday-Blitz-December-26-2023"]
[Site "Chess.com"]
[Date "2023.12.26"]
[Round "6"]
[White "sheldons73tshirt"]
[Black "baag"]
[Result "0-1"]
[WhiteElo "2671"]
[BlackElo "2847"]
[TimeControl "180+1"]
[EndTime "15:07:09 PST"]
[Termination "baag won on time"]

1. e4 {[%clk 0:03:00.9]} 1... c6 {[%clk 0:02:58.1]} 2. c4 {[%clk 0:03:00.5]}
2... d5 {[%clk 0:02:59]} 3. cxd5 {[%clk 0:03:01.4]} 3... cxd5 {[%clk 0:02:57.4]}
4. exd5 {[%clk 0:03:02.3]} 4... Nf6 {[%clk 0:02:57.3]} 5. Nc3 {[%clk 0:03:03.2]}
5... Nxd5 {[%clk 0:02:56.9]} 6. Nf3 {[%clk 0:03:03.7]} 6... Nc6 {[%clk
0:02:48.7]} 7. Bb5 {[%clk 0:03:03.1]} 7... g6 {[%clk 0:02:30.8]} 8. Qa4 {[%clk
0:03:02.4]} 8... Nb6 {[%clk 0:02:08.7]} 9. Qh4 {[%clk 0:03:00.7]} 9... a6 {[%clk
0:02:02.1]} 10. Bxc6+ {[%clk 0:02:58.4]} 10... bxc6 {[%clk 0:02:03]} 11. d4
{[%clk 0:02:58.3]} 11... h6 {[%clk 0:02:03.5]} 12. O-O {[%clk 0:02:51.9]} 12...
Bg7 {[%clk 0:02:03.8]} 13. Re1 {[%clk 0:02:51.2]} 13... g5 {[%clk 0:02:02.7]}
14. Qg3 {[%clk 0:02:29.1]} 14... Nd5 {[%clk 0:02:02.3]} 15. Ne4 {[%clk
0:02:24.5]} 15... Nf6 {[%clk 0:01:51.3]} 16. Nxf6+ {[%clk 0:01:50.9]} 16... Bxf6
{[%clk 0:01:52.2]} 17. Bd2 {[%clk 0:01:45.7]} 17... Be6 {[%clk 0:01:42.4]} 18.
Bb4 {[%clk 0:01:39.5]} 18... Qd5 {[%clk 0:01:19.3]} 19. a3 {[%clk 0:01:29.4]}
19... a5 {[%clk 0:01:15.7]} 20. Bc5 {[%clk 0:01:28.7]} 20... Kf8 {[%clk
0:01:10.8]} 21. Ne5 {[%clk 0:01:11.3]} 21... Kg7 {[%clk 0:01:09.2]} 22. Rad1
{[%clk 0:01:08]} 22... Rhb8 {[%clk 0:00:53.6]} 23. b4 {[%clk 0:01:03.6]} 23...
axb4 {[%clk 0:00:54.5]} 24. axb4 {[%clk 0:01:02.4]} 24... Rg8 {[%clk 0:00:42.3]}
25. h3 {[%clk 0:00:55.5]} 25... Ra2 {[%clk 0:00:41.9]} 26. Ra1 {[%clk
0:00:47.8]} 26... Rga8 {[%clk 0:00:29]} 27. Rxa2 {[%clk 0:00:47]} 27... Rxa2
{[%clk 0:00:29.9]} 28. Qe3 {[%clk 0:00:40.9]} 28... Bf5 {[%clk 0:00:19.5]} 29.
Qg3 {[%clk 0:00:32.2]} 29... e6 {[%clk 0:00:18.7]} 30. Qe3 {[%clk 0:00:31]}
30... Rb2 {[%clk 0:00:10.5]} 31. Qc3 {[%clk 0:00:25.2]} 31... Rb3 {[%clk
0:00:09]} 32. Qa1 {[%clk 0:00:25.7]} 32... Bxe5 {[%clk 0:00:04]} 33. dxe5 {[%clk
0:00:19.1]} 33... Bxh3 {[%clk 0:00:03.8]} 34. f3 {[%clk 0:00:12.9]} 34... Bxg2
{[%clk 0:00:04.2]} 35. Qa8 {[%clk 0:00:12.2]} 35... Qxf3 {[%clk 0:00:02.2]} 36.
Qf8+ {[%clk 0:00:12.6]} 36... Kg6 {[%clk 0:00:02.9]} 37. Qg8+ {[%clk 0:00:08.1]}
37... Kh5 {[%clk 0:00:03.4]} 38. Bf8 {[%clk 0:00:05.6]} 38... Bh3 {[%clk
0:00:03.2]} 0-1

[Event "Late-Titled-Tuesday-Blitz-December-26-2023"]
[Site "Chess.com"]
[Date "2023.12.26"]
[Round "6"]
[White "WindWhistler11"]
[Black "FontVella8"]
[Result "0-1"]
[WhiteElo "2501"]
[BlackElo "2778"]
[TimeControl "180+1"]
[EndTime "15:07:13 PST"]
[Termination "FontVella8 won by resignation"]

1. Nf3 {[%clk 0:02:55]} 1... Nf6 {[%clk 0:02:59.5]} 2. c4 {[%clk 0:02:54.8]}
2... e6 {[%clk 0:02:59.6]} 3. g3 {[%clk 0:02:54.3]} 3... d5 {[%clk 0:02:59.9]}
4. Bg2 {[%clk 0:02:54.7]} 4... dxc4 {[%clk 0:02:59.8]} 5. Na3 {[%clk 0:02:50.5]}
5... Bxa3 {[%clk 0:02:57]} 6. bxa3 {[%clk 0:02:50.3]} 6... O-O {[%clk
0:02:57.6]} 7. a4 {[%clk 0:02:47]} 7... Nbd7 {[%clk 0:02:54.9]} 8. Qc2 {[%clk
0:02:43.9]} 8... c5 {[%clk 0:02:39.9]} 9. Qxc4 {[%clk 0:02:37.1]} 9... Qa5
{[%clk 0:02:34]} 10. Ba3 {[%clk 0:02:24.3]} 10... Nd5 {[%clk 0:02:31.9]} 11. O-O
{[%clk 0:02:18.6]} 11... N5b6 {[%clk 0:02:23]} 12. Qc2 {[%clk 0:02:14.6]} 12...
Qxa4 {[%clk 0:02:22.5]} 13. Rfc1 {[%clk 0:01:51.7]} 13... Qxa3 {[%clk
0:02:21.4]} 14. Ng5 {[%clk 0:01:46]} 14... Nf6 {[%clk 0:02:16.7]} 15. Rab1
{[%clk 0:01:42.2]} 15... Nbd5 {[%clk 0:02:11.1]} 16. Rb3 {[%clk 0:01:41]} 16...
Qa5 {[%clk 0:02:09.1]} 17. e4 {[%clk 0:01:40.5]} 17... Nb4 {[%clk 0:02:06.8]}
18. Qb1 {[%clk 0:01:29]} 18... e5 {[%clk 0:01:34.2]} 19. f4 {[%clk 0:01:18.7]}
19... Nc6 {[%clk 0:01:27.8]} 20. Rb5 {[%clk 0:01:09]} 20... Qxd2 {[%clk
0:01:25.5]} 21. Rbxc5 {[%clk 0:01:07.3]} 21... Ng4 {[%clk 0:01:21.5]} 22. h3
{[%clk 0:00:46.9]} 22... Qf2+ {[%clk 0:01:12.3]} 23. Kh1 {[%clk 0:00:45.8]}
23... Ne3 {[%clk 0:01:09.5]} 24. Rg1 {[%clk 0:00:42.4]} 24... Nd4 {[%clk
0:00:56.4]} 25. Qe1 {[%clk 0:00:29.2]} 25... Qxe1 {[%clk 0:00:49.4]} 26. Rxe1
{[%clk 0:00:30.1]} 26... Nxg2 {[%clk 0:00:48.5]} 27. Kxg2 {[%clk 0:00:31]} 27...
f6 {[%clk 0:00:47.1]} 28. Nf3 {[%clk 0:00:28.5]} 28... Bxh3+ {[%clk 0:00:46.9]}
29. Kxh3 {[%clk 0:00:25.3]} 29... Nxf3 {[%clk 0:00:47.1]} 30. Rec1 {[%clk
0:00:21.3]} 30... Nd4 {[%clk 0:00:43.5]} 31. Rc7 {[%clk 0:00:21.2]} 31... Rf7
{[%clk 0:00:37.8]} 32. Rxf7 {[%clk 0:00:18.5]} 32... Kxf7 {[%clk 0:00:36.9]} 33.
Rc7+ {[%clk 0:00:19.4]} 33... Kg6 {[%clk 0:00:34.7]} 34. f5+ {[%clk 0:00:19.9]}
34... Kh6 {[%clk 0:00:34.5]} 35. Rxb7 {[%clk 0:00:19.9]} 35... a5 {[%clk
0:00:33.9]} 36. a4 {[%clk 0:00:18.3]} 36... g6 {[%clk 0:00:33.4]} 37. Rb6 {[%clk
0:00:16.6]} 37... Kg5 {[%clk 0:00:32.7]} 38. fxg6 {[%clk 0:00:12.7]} 38... hxg6
{[%clk 0:00:32.7]} 39. Kg2 {[%clk 0:00:12.9]} 39... Rc8 {[%clk 0:00:30.2]} 40.
Ra6 {[%clk 0:00:12.6]} 40... Rc2+ {[%clk 0:00:28.2]} 41. Kf1 {[%clk 0:00:12]}
41... Nc6 {[%clk 0:00:21.7]} 42. Ke1 {[%clk 0:00:11.6]} 42... Kg4 {[%clk
0:00:20.8]} 43. Kd1 {[%clk 0:00:12.1]} 43... Rc5 {[%clk 0:00:19.5]} 44. Ke2
{[%clk 0:00:11]} 44... Kxg3 {[%clk 0:00:19.7]} 45. Kd3 {[%clk 0:00:11.8]} 45...
Kf4 {[%clk 0:00:19.6]} 46. Rb6 {[%clk 0:00:11.8]} 46... Nb4+ {[%clk 0:00:19.6]}
47. Ke2 {[%clk 0:00:11.5]} 47... f5 {[%clk 0:00:19.5]} 48. Rxg6 {[%clk
0:00:05.9]} 48... Kxe4 {[%clk 0:00:19.8]} 49. Rh6 {[%clk 0:00:04.8]} 49... Rc2+
{[%clk 0:00:19.8]} 0-1